Workbook

Sheet DEMANDE (hidden)
A1: Demande d'aide financière au Fonds d'intervention pour le développement du secteur agroalimentaire (FIDSA)
C2: Formulaire demande individuelle
A3: Renseignements sur le demandeur et son représentant
A5: Nom de l'entreprise | E5: Statut | J5: 1
A7: Répondant | E7: Production principale | J7: 1
A9: Adresse | E9: Présence de relève de moins de 45 ans au sein de l'entreprise
J10: 1
A11: Ville
E12: Formation complétée et reconnue en agriculture
A13: MRC | J13: 1
J14: 1
A15: Code postal | E15: Téléphone
A17: Numéro d'identification ministériel (NIM) | E17: Courriel
A19: Lien foncier avec l'emplacement du projet | J19: 1
A21: Municipalité où se déroule le projet | E21: Matricule du lot *
E22: * seulement pour des aménagements réalisés sur un terrain dont le demandeur n'est pas propriétaire
A23: Titre du projet
A26: Liste des investissements prévus
A27: Investissements | B27: Mesure | E27: Coût | F27: Aide financière potentielle | G27: Date de début | H27: Date de fin
F28: =MIN((E28*(IF(J28=3,60%,(IF(J28=4,30%,50%))))),(VLOOKUP(J28,LISTES!$A$14:$G$24,7,FALSE))) -> 0 | J28: 1
F29: =MIN((E29*(IF(J29=3,60%,(IF(J29=4,30%,50%))))),(VLOOKUP(J29,LISTES!$A$14:$G$24,7,FALSE))) -> 0 | J29: 1
F30: =MIN((E30*(IF(J30=3,60%,(IF(J30=4,30%,50%))))),(VLOOKUP(J30,LISTES!$A$14:$G$24,7,FALSE))) -> 0 | J30: 1
F31: =MIN((E31*(IF(J31=3,60%,(IF(J31=4,30%,50%))))),(VLOOKUP(J31,LISTES!$A$14:$G$24,7,FALSE))) -> 0 | J31: 1
F32: =MIN((E32*(IF(J32=3,60%,(IF(J32=4,30%,50%))))),(VLOOKUP(J32,LISTES!$A$14:$G$24,7,FALSE))) -> 0 | J32: 1
F33: =MIN((E33*(IF(J33=3,60%,(IF(J33=4,30%,50%))))),(VLOOKUP(J33,LISTES!$A$14:$G$24,7,FALSE))) -> 0 | J33: 1
F34: =MIN((E34*(IF(J34=3,60%,(IF(J34=4,30%,50%))))),(VLOOKUP(J34,LISTES!$A$14:$G$24,7,FALSE))) -> 0 | J34: 1
F35: =MIN((E35*(IF(J35=3,60%,(IF(J35=4,30%,50%))))),(VLOOKUP(J35,LISTES!$A$14:$G$24,7,FALSE))) -> 0 | J35: 1
F36: =MIN((E36*(IF(J36=3,60%,(IF(J36=4,30%,50%))))),(VLOOKUP(J36,LISTES!$A$14:$G$24,7,FALSE))) -> 0 | J36: 1
F37: =MIN((E37*(IF(J37=3,60%,(IF(J37=4,30%,50%))))),(VLOOKUP(J37,LISTES!$A$14:$G$24,7,FALSE))) -> 0 | J37: 1
F38: =E38*(IF(J38=3,60%,(IF(J38=4,30%,50%)))) -> 0 | J38: 1
A39: Total | E39: =SUM(E28:E38) -> 0 | F39: =MIN(50000,(SUM(F28:F38))) -> 0
A40: Frais de gestion (15 % du montant d'aide versée multiplié par un taux d'aide de 50 %) | E40: =MIN((F39*15%),50000-F39) -> 0 | F40: =MIN((F39*15%*50%),50000-F39) -> 0
A41: Aide maximale par projet de 50 000 $ | F41: =MIN((F39+F40),50000) -> 0
A43: Financement du projet (excluant les frais de gestion)
A44: Besoin de financement | C44: Organismes et programmes | E44: Statut du financement | F44: =E39 -> 0 | G44: Proportion | H44: Cumul d'aide
A45: Aide financière FIDSA | F45: =F39 -> 0 | G45: =IFERROR(F45/F$44,"") ->  | H45: =SUM(G45:G47) -> 0
A46: Autre aide financière | G46: =IFERROR(F46/F$44,"") -> 
A47: Autre aide financière
A48: Prime à l'établissement/Aide au démarrage | H48: =SUM(G48:G52) -> 0
A49: Emprunt
A50: Emprunt
A51: Autre
A52: Mise de fonds de l'entreprise/promoteur
F53: =SUM(F45:F52) -> 0 | G53: =SUM(G45:G52) -> 0 | H53: =SUM(H45:H51) -> 0
A55: Choisir d'un à trois objectifs de votre projet qui sont en lien avec la planification stratégique 2023-2027 du secteur agroalimentaire
A57: Objectif 1 | J57: 1
A59: Objectif 2 | J59: 1
A61: Objectif 3 | J61: 1
A63: Entreprise (brève description des promoteurs, volumes et types de productions, activités de transformation, mise en marché, etc.)
A77: Projet (problématique, objectifs poursuivis, résultats attendus, etc.)
A91: Estimation des effets de votre projet sur la santé financière de votre entreprise
A92: Chiffres d'affaires de votre entreprise dans vos derniers états financiers
A94: Revenus annuels supplémentaires générés par le projet | G94: =IF(F94="","",IF(F92="","",(F94/F92))) -> 
A95: Principaux postes de revenus impactés :
A97: Dépenses annuelles supplémentaires générées par le projet | G97: =IF(F97="","",IF(F92="","",(F97/F92))) -> 
A98: Principaux postes de dépenses impactés :
A100: Économies annuelles générées par le projet | G100: =IF(F100="","",IF(F92="","",(F100/F92))) ->  | H100: =IF(G100="","",IF(G95="","",(G100/G95))) -> 
A101: Principaux postes de dépenses impactés :
A103: Est-ce que ce projet vous fera économiser du temps? | F103: Si oui, combien d'heures par année environ? | J103: 1
A104: De quelle façon?
A106: Montant du projet financé par emprunt | F106: Marge brute annuelle dégagée par votre projet : | G106: =F94-F97+F100 -> 0
A108: Durée du prêt en années 1 | F108: Marge brute du projet / chiffre d'affaires de l'entreprise : | G108: =IFERROR(G106/F92,"") -> 
A109: 1. Inscrire la durée de vie utile si aucun prêt n'est lié au projet
A110: Taux d'intérêt sur emprunt | C110: Solde de trésorerie annuel lié au projet 2 : | G110: =IFERROR(F94-F97+F100-B112,"") -> 
F111: 2. Marge brute du projet - remboursement annuel sur la partie financée
A112: Remboursements annuels liés au projet | B112: =IFERROR(-(PMT(B110/12,B108*12,B106))*12,"") ->  | C112: Rendement du projet à la fin de l'amortissement 3 : | G112: =IFERROR((FV((0)/12,B108*12,-G110/12))/F53,"") -> 
F113: 3. Valeur des soldes de trésorerie cumulés sur la durée du projet / Coût total du projet
A115: Documents à joindre à votre demande
A116: → États financiers comptables ou formulaire T2042 de votre déclaration fiscale dans le cas d'un individu;
A117: → Soumission pour équipement, matériel ou étude d'une valeur de plus de 2 000 $;
A118: → Plan d'affaires à jour pour un projet touchant la mesure relève;
A119: → La version complétée du formulaire en format Excel;
A120: → Une copie signée de votre demande en version pdf ou format image (jpeg ou autre);
A121: → Veuillez noter que des documents supplémentaires pourraient vous être exigés au besoin.
A123: Engagement du demandeur et signature
A125: Je certifie que les renseignements inscrits dans le formulaire et dans tous les documents fournis sont vrais, complets et exacts.
A127: Je comprends que la présente demande ne me garantit pas l’obtention d’une aide financière pour mon projet et que cette aide est conditionnelle à l’acceptation
A128: du projet par le comité de gestion de l’entente sectorielle sous réserve des disponibilités budgétaires.
A130: Je consens à ce que les renseignements demandés et recueillis dans le contexte de ma demande financière soient partagés avec les organismes partenaires
A131: membres du comité de gestion et du comité de recommandations de l’entente sectorielle.
A133: Je consens à ce que les partenaires impliqués (FADQ, institution financière, UPA ou autre) communiquent au personnel du MAPAQ des informations relatives
A134: à mon entreprise et pouvant être utiles ou nécessaires à l'analyse de mon projet.
A136: Je reconnais que mon projet est conforme aux lois ou aux règlements applicables et en vigueur, notamment en ce qui concerne la salubrité, l'innocuité des
A137: aliments et la sécurité, la protection du territoire agricole ainsi que l’environnement.
A139: Je certifie que je suis mandaté(e) pour signer cette demande d'aide financière et que je peux en faire la preuve sur demande.
A142: =IF(B7="","",B7) -> 
A143: Prénom et nom en lettres moulées
A147: Signature du demandeur | D147: Date

Sheet ANALYSE (hidden)
A1: Formulaire d'analyse de projet
A3: Titre du projet: | B3: =IF(DEMANDE!B23="","",DEMANDE!B23) -> 
A5: Nom de l'entreprise | B5: =IF(DEMANDE!B5="","",DEMANDE!B5) ->  | E5: Numéro de projet :
A6: Répondant | B6: =IF(DEMANDE!B7="","",DEMANDE!B7) ->  | F6: Date de réception du projet:
A7: Adresse | B7: =IF(DEMANDE!B9="","",DEMANDE!B9) ->  | E7: Répondant MAPAQ :
A8: Ville | B8: =IF(DEMANDE!B11="","",DEMANDE!B11) -> 
A9: Téléphone | B9: =IF(DEMANDE!F15="","",DEMANDE!F15) -> 
A11: Admissibilité de la demande et du promoteur
A13: Entreprise enregistrée au MAPAQ (détient un NIM) | O13: 1
A15: Projet localisé sur le territoire de la Gaspésie ou des Îles-de-la-Madeleine | O15: 1
A17: L'entreprise est propriétaire de la parcelle sur laquelle se fera le projet ou détient un bail | O17: 1
A19: Promoteur considéré comme une relève avec plan d'affaires annexé à la demande | O19: 1
A21: Au moins un investissement présenté dans la demande est admissible à une aide | O21: 1
A23: Présences de soumissions pour les dépenses de plus de 5 000 $
O24: 1
A25: Investissements prévus
A26: Demande du client | F26: Lettre d'offre
A27: Investissements | B27: Mesures choisies par le client | C27: Coût prévue | D27: Aide financière | E27: Échance prévue par le client | F27: Mesures proposées | G27: Coûts totaux | H27: Coût admissible | I27: Aide financière
A28: =IF(DEMANDE!A28="","",DEMANDE!A28) ->  | B28: =IF(A28="","",IFERROR(VLOOKUP(N28,LISTES!$A$14:$B$24,2),"")) ->  | C28: =DEMANDE!E28 -> 0 | D28: =DEMANDE!F28 -> 0 | E28: =IF(DEMANDE!H28="","",DEMANDE!H28) ->  | I28: =MIN(MIN(50000,(H28*(IF(O28=3,60%,(IF(O28=4,30%,50%)))))),VLOOKUP(O28,LISTES!$A$14:$H$25,7)) -> 0 | N28: =DEMANDE!J28 -> 1 | O28: 1
A29: =IF(DEMANDE!A29="","",DEMANDE!A29) ->  | B29: =IF(A29="","",IFERROR(VLOOKUP(N29,LISTES!$A$14:$B$24,2),"")) ->  | C29: =DEMANDE!E29 -> 0 | D29: =DEMANDE!F29 -> 0 | E29: =IF(DEMANDE!H29="","",DEMANDE!H29) ->  | I29: =MIN((MIN(MIN(50000,(H29*(IF(O29=3,60%,(IF(O29=4,30%,50%)))))),VLOOKUP(O29,LISTES!$A$14:$H$25,7))),50000-I28) -> 0 | N29: =DEMANDE!J29 -> 1 | O29: 1
A30: =IF(DEMANDE!A30="","",DEMANDE!A30) ->  | B30: =IF(A30="","",IFERROR(VLOOKUP(N30,LISTES!$A$14:$B$24,2),"")) ->  | C30: =DEMANDE!E30 -> 0 | D30: =DEMANDE!F30 -> 0 | E30: =IF(DEMANDE!H30="","",DEMANDE!H30) ->  | I30: =MIN((MIN(MIN(50000,(H30*(IF(O30=3,60%,(IF(O30=4,30%,50%)))))),VLOOKUP(O30,LISTES!$A$14:$H$25,7))),50000-I29-I28) -> 0 | N30: =DEMANDE!J30 -> 1 | O30: 1
A31: =IF(DEMANDE!A31="","",DEMANDE!A31) ->  | B31: =IF(A31="","",IFERROR(VLOOKUP(N31,LISTES!$A$14:$B$24,2),"")) ->  | C31: =DEMANDE!E31 -> 0 | D31: =DEMANDE!F31 -> 0 | E31: =IF(DEMANDE!H31="","",DEMANDE!H31) ->  | I31: =MIN((MIN(MIN(50000,(H31*(IF(O31=3,60%,(IF(O31=4,30%,50%)))))),VLOOKUP(O31,LISTES!$A$14:$H$25,7))),50000-I30-I29-I28) -> 0 | N31: =DEMANDE!J31 -> 1 | O31: 1
A32: =IF(DEMANDE!A32="","",DEMANDE!A32) ->  | B32: =IF(A32="","",IFERROR(VLOOKUP(N32,LISTES!$A$14:$B$24,2),"")) ->  | C32: =DEMANDE!E32 -> 0 | D32: =DEMANDE!F32 -> 0 | E32: =IF(DEMANDE!H32="","",DEMANDE!H32) ->  | I32: =MIN((MIN(MIN(50000,(H32*(IF(O32=3,60%,(IF(O32=4,30%,50%)))))),VLOOKUP(O32,LISTES!$A$14:$H$25,7))),50000-I31-I30-I29-I28) -> 0 | N32: =DEMANDE!J32 -> 1 | O32: 1
A33: =IF(DEMANDE!A33="","",DEMANDE!A33) ->  | B33: =IF(A33="","",IFERROR(VLOOKUP(N33,LISTES!$A$14:$B$24,2),"")) ->  | C33: =DEMANDE!E33 -> 0 | D33: =DEMANDE!F33 -> 0 | E33: =IF(DEMANDE!H33="","",DEMANDE!H33) ->  | I33: =MIN((MIN(MIN(50000,(H33*(IF(O33=3,60%,(IF(O33=4,30%,50%)))))),VLOOKUP(O33,LISTES!$A$14:$H$25,7))),50000-I32-I31-I30-I29-I28) -> 0 | N33: =DEMANDE!J33 -> 1 | O33: 1
A34: =IF(DEMANDE!A34="","",DEMANDE!A34) ->  | B34: =IF(A34="","",IFERROR(VLOOKUP(N34,LISTES!$A$14:$B$24,2),"")) ->  | C34: =DEMANDE!E34 -> 0 | D34: =DEMANDE!F34 -> 0 | E34: =IF(DEMANDE!H34="","",DEMANDE!H34) ->  | I34: =MIN((MIN(MIN(50000,(H34*(IF(O34=3,60%,(IF(O34=4,30%,50%)))))),VLOOKUP(O34,LISTES!$A$14:$H$25,7))),50000-I33-I32-I31-I30-I29-I28) -> 0 | N34: =DEMANDE!J34 -> 1 | O34: 1
A35: =IF(DEMANDE!A35="","",DEMANDE!A35) ->  | B35: =IF(A35="","",IFERROR(VLOOKUP(N35,LISTES!$A$14:$B$24,2),"")) ->  | C35: =DEMANDE!E35 -> 0 | D35: =DEMANDE!F35 -> 0 | E35: =IF(DEMANDE!H35="","",DEMANDE!H35) ->  | I35: =MIN((MIN(MIN(50000,(H35*(IF(O35=3,60%,(IF(O35=4,30%,50%)))))),VLOOKUP(O35,LISTES!$A$14:$H$25,7))),50000-I34-I33-I32-I31-I30-I29-I28) -> 0 | N35: =DEMANDE!J35 -> 1 | O35: 1
A36: =IF(DEMANDE!A36="","",DEMANDE!A36) ->  | B36: =IF(A36="","",IFERROR(VLOOKUP(N36,LISTES!$A$14:$B$24,2),"")) ->  | C36: =DEMANDE!E36 -> 0 | D36: =DEMANDE!F36 -> 0 | E36: =IF(DEMANDE!H36="","",DEMANDE!H36) ->  | I36: =MIN((MIN(MIN(50000,(H36*(IF(O36=3,60%,(IF(O36=4,30%,50%)))))),VLOOKUP(O36,LISTES!$A$14:$H$25,7))),50000-I35-I34-I33-I32-I31-I30-I29-I28) -> 0 | N36: =DEMANDE!J36 -> 1 | O36: 1
A37: =IF(DEMANDE!A37="","",DEMANDE!A37) ->  | B37: =IF(A37="","",IFERROR(VLOOKUP(N37,LISTES!$A$14:$B$24,2),"")) ->  | C37: =DEMANDE!E37 -> 0 | D37: =DEMANDE!F37 -> 0 | E37: =IF(DEMANDE!H37="","",DEMANDE!H37) ->  | I37: =MIN((MIN(MIN(50000,(H37*(IF(O37=3,60%,(IF(O37=4,30%,50%)))))),VLOOKUP(O37,LISTES!$A$14:$H$25,7))),50000-I36-I35-I34-I33-I32-I31-I30-I29-I28) -> 0 | N37: =DEMANDE!J37 -> 1 | O37: 1
A38: =IF(DEMANDE!A38="","",DEMANDE!A38) ->  | B38: =IF(A38="","",IFERROR(VLOOKUP(N38,LISTES!$A$14:$B$24,2),"")) ->  | C38: =DEMANDE!E38 -> 0 | D38: =DEMANDE!F38 -> 0 | E38: =IF(DEMANDE!H38="","",DEMANDE!H38) ->  | I38: =MIN((MIN(MIN(50000,(H38*(IF(O38=3,60%,(IF(O38=4,30%,50%)))))),VLOOKUP(O38,LISTES!$A$14:$H$25,7))),50000-I37-I36-I35-I34-I33-I32-I31-I30-I29-I28) -> 0 | N38: =DEMANDE!J38 -> 1 | O38: 1
C39: =DEMANDE!E39 -> 0 | D39: =DEMANDE!F39 -> 0 | G39: =SUM(G28:G38) -> 0 | H39: =SUM(H28:H38) -> 0 | I39: =MIN(50000,(SUM(I28:I38))) -> 0
A40: Frais de gestion (15 %) | C40: =DEMANDE!E40 -> 0 | D40: =DEMANDE!F40 -> 0 | I40: =MIN((I39*0.15*0.5),(50000-I39)) -> 0
D41: =D39+D40 -> 0 | I41: =I39+I40 -> 0
A43: 1.A - Développement et consolidation | B43: 1.A - CUMA | C43: 1.B - Animaux | D43: 1.B - Apiculture | E43: 1.B - Pâturages | F43: 1.C - Santé des sols | G43: 1.D - Relève | H43: 1.E - Remise culture | I43: 4 - Transformation
A44: =LISTES!H15 -> 0 | B44: =LISTES!H16 -> 0 | C44: =LISTES!H17 -> 0 | D44: =LISTES!H18 -> 0 | E44: =LISTES!H19 -> 0 | F44: =LISTES!H20 -> 0 | G44: =LISTES!H22 -> 0 | H44: =LISTES!H23 -> 0 | I44: =LISTES!H24 -> 0
A45: 50000 | B45: 50000 | C45: 25000 | D45: 10000 | E45: 25000 | F45: 50000 | G45: 50000 | H45: 10000 | I45: 50000
A47: Les estimations de coûts semblent raisonnables relativement à la nature des investissements prévus. | G47: =(O47-1) -> 0 | H47: / 5 | O47: 1
A49: Les investissements semblent appropriés compte tenu de la nature et de la situation de l'entreprise. | G49: =(O49-1) -> 0 | H49: / 5 | O49: 1
A51: Les échéances semblent réalistes. | D51: =(O51-1) -> 0 | E51: / 5 | O51: 1
A53: Appréciation globale de l'analyse pour la partie Investissements. | E53: =(O53-1) -> 0 | F53: / 5 | O53: 1
A55: Commentaires de l'analyste
A61: Pointage d’Investissements: | B61: =G47+G49+D51+E53 -> 0 | C61: /20 | D61: =B61/20 -> 0
A64: Financement
A65: Besoin de financement | C65: Organisme | E65: Statut | F65: Prévu | G65: Proposé | H65: Proportion | I65: Cumul d'aide
A66: Aide financière FIDSA | E66: Recommandé | F66: =DEMANDE!F45 -> 0 | G66: =I39 -> 0 | H66: =IFERROR(G66/$G$71,"") ->  | I66: =SUM(H66:H69) -> 0 | O66: 4
A67: Autre aide financière | F67: =DEMANDE!F46 -> 0 | H67: =IFERROR(G67/$G$71,"") ->  | O67: 1
A68: Autre aide financière | F68: =DEMANDE!F47 -> 0 | O68: 1
A69: Prime à l'établissement/Aide au démarrage | F69: =DEMANDE!F48 -> 0 | O69: 1
A70: Emprunt | F70: =DEMANDE!F49 -> 0 | O70: 1
A71: Emprunt | F71: =DEMANDE!F50 -> 0 | O71: 1
A72: Autre | F72: =DEMANDE!F51 -> 0 | O72: 1
A73: Mise de fonds de l'entreprise/promoteur | E73: Confirmé | F73: =DEMANDE!F52 -> 0 | O73: 4
A74: =IF(A39="","",A39) ->  | F74: =SUM(F66:F73) -> 0 | G74: =SUM(G66:G73) -> 0 | H74: =SUM(H66:H73) -> 0 | I74: =IFERROR(I66+#REF!,"") -> 
F75: Total des investissements (G36) : | G75: =G39 -> 0
A77: Proportion du financement recommandé ou confirmé | C77: =SUMIF($O$63:$O$70,4,$H$63:$H$70) -> 0 | E77: Financement recommandé(FIDSA) ou déjà confirmé: | H77: =IF(C77>0.9,5,IF(C77>0.7,4,IF(C77>0.5,3,IF(C77>0.3,2,IF(C77>0,1,0))))) -> 0 | I77: / 5
A78: Proportion du financement en cours d'analyse | C78: =SUMIF(O66:O73,3,H66:H73) -> 0 | E78: État des démarches de financement (En analyse ou confirmé) | H78: =IF(C77+C78>0.9,5,IF(C77+C78>0.7,4,IF(C77+C78>0.5,3,IF(C77+C78>0.3,2,IF(C77+C78>0,1,0))))) -> 0 | I78: / 5
A79: Proportion du financement non demandé | C79: =SUMIF($O$63:$O$70,2,$H$63:$H$70)+SUMIF($O$63:$O$70,1,$H$63:$H$70) -> 0
A81: Le financement du projet exploite bien les diverses possibilités offertes dans le secteur (subventions et prêts garantis) | H81: =(O81-1) -> 0 | I81: / 5 | O81: 1
A83: Le financement du projet est bien structuré et ne constitue pas un risque à court terme pour les liquidités de l'entreprise | H83: =(O83-1) -> 0 | I83: / 5 | O83: 1
A85: Importance de la mise de fonds relativement au chiffre d'affaires | D85: =IFERROR(G73/DEMANDE!F92,"") ->  | G85: Coût de l'emprunt (frais & intérêts) / Coût du projet | H85: =IFERROR(((-(CUMIPMT(DEMANDE!B110/12,DEMANDE!B108*12,(G70+G71),1,DEMANDE!B108*12,0))+800)/G74),"") -> 
A87: Le promoteur a des solutions à sa portée en cas de dépassement de coûts (capacité d'injecter des fonds, d'augmenter, emprunt, etc.) | H87: =(O87)-1 -> 0 | I87: / 5 | O87: 1
A89: Appréciation globale de l'analyse pour la partie Financement. | E89: =(O89-1) -> 0 | F89: / 5 | O89: 1
A93: Commentaires de l'analyste
A99: Pointage de Financement: | B99: =IFERROR(H77+H78+H81+H87+H83+E89,0) -> 0 | C99: /30 | D99: =IFERROR(B99/30,"") -> 0
A102: Effets du projet sur la santé financière de l'entreprise
A104: Chiffres d'affaires des derniers états financiers | C104: =DEMANDE!F92 -> 0 | G104: Explications des résultats présentés
A106: Revenus annuels supplémentaires générés | C106: =DEMANDE!F94 -> 0 | D106: =IFERROR(C106/C$104,0) -> 0
A107: De quelle façon? | B107: =IF(DEMANDE!B95="","",DEMANDE!B95) -> 
A109: Dépenses annuels supplémentaires générées | C109: =DEMANDE!F97 -> 0 | D109: =IFERROR(C109/C$104,0) -> 0
A110: De quelle façon? | B110: =IF(DEMANDE!B98="","",DEMANDE!B98) -> 
A112: Économies annuels générées | C112: =DEMANDE!F100 -> 0 | D112: =IFERROR(C112/C$104,0) -> 0
A113: De quelle façon? | B113: =IF(DEMANDE!B101="","",DEMANDE!B101) -> 
A115: Marge brute dégagée par le projet : | C115: =C106-C109+C112 -> 0 | D115: =IFERROR(C115/C$104,0) -> 0
A117: Solde de trésorerie annuel lié au projet 2 : | C117: =IFERROR(C115-B130-DEMANDE!B112,"") ->  | D117: =IFERROR(C117/G39,0%) -> 0
A118: 2. Marge brute du projet - remboursement annuel sur la partie financée | G118: Résumé des états financiers
A120: Rendement du projet à la fin de l'amortissement 3 : | D120: =IFERROR((FV((0%)/12,DEMANDE!B108*12,-C117/12,,1))/ANALYSE!G39,0) -> 0 | F120: Produits
A121: 3. Valeur des soldes de trésorerie cumulés sur la durée du projet / Coût total du projet | F121: Charges variables
F122: Charges fixes
A123: Ce projet améliore-il l'efficacité du travail? | C123: =IF(DEMANDE!J103=1,"",IF(DEMANDE!J103=2,"Oui","Non")) ->  | D123: =DEMANDE!G103 -> 0 | E123: h économisées | F123: Bénéfice net
A124: De quelle façon? | B124: =IF(DEMANDE!B104="","",DEMANDE!B104) ->  | F124: Actifs ct
F125: Actifs lt
A126: L'augmentation des revenus est intéressante et réaliste | D126: =IF(D106>0.2,5,IF(D106>0.1,4,IF(D106>0.05,3,IF(D106>0,2,IF(D106<0.001,1,0))))) -> 1 | E126: /5 | F126: Passifs ct | O126: 6
F127: Passifs lt
A128: La diminution des dépenses est intéressante et réaliste | D128: =IF(D112-D109>0.2,5,IF(D112-D109>0.1,4,IF(D112-D109>0.05,3,IF(D112-D109>0,2,IF(D112-D109<0.001,1,0))))) -> 1 | E128: /5 | F128: Capitaux propres | O128: 2
A130: Le projet contribue à améliorer l'efficacité du travail | D130: =IF(ANALYSE!D123>99.9,5,IF(ANALYSE!D123>49.9,4,IF(ANALYSE!D123>24.9,3,IF(ANALYSE!D123>0,2,1)))) -> 1 | E130: /5 | G130: Ratios | O130: 2
F131: Marge bénéficiaire (BN/Pr) | G131: =IFERROR(G123/G120,"") ->  | H131: =IFERROR(H123/H120,"") ->  | I131: =IFERROR(I123/I120,"") -> 
A132: La marge brute est significative par rapport au chiffre d'affaires | D132: =IF(D115>0.1,5,IF(D115>0.05,4,IF(D115>0.025,3,IF(D115>0,2,IF(D115<0.001,1,0))))) -> 1 | E132: /5 | F132: Endettement (P/A) | G132: =IFERROR((G126+G127)/(G124+G125),"") ->  | H132: =IFERROR((H126+H127)/(H124+H125),"") ->  | I132: =IFERROR((I126+I127)/(I124+I125),"") ->  | O132: 6
F133: Liquidité générale (Act/Pct) | G133: =IFERROR((G124/G126),"") ->  | H133: =IFERROR((H124/H126),"") ->  | I133: =IFERROR((I124/I126),"") -> 
A134: Le solde de trésorerie annuel est positif et conséquent avec le projet | D134: =IF(D117>0.1,5,IF(D117>0.05,4,IF(D117>0.025,3,IF(D117>0,2,IF(D117<0.001,1,0))))) -> 1 | E134: /5 | F134: Rendement actifs (BN/A) | G134: =IFERROR((G123/(G124+G125)),"") ->  | H134: =IFERROR((H123/(H124+H125)),"") ->  | I134: =IFERROR((I123/(I124+I125)),"") ->  | O134: 6
F135: Rendement capitaux (BN/CP) | G135: =IFERROR((G123/G128),"") ->  | H135: =IFERROR((H123/H128),"") ->  | I135: =IFERROR((I123/I128),"") -> 
A136: Le projet présente un rendement intéressant | D136: =IF(D120>0.1,5,IF(D120>0.05,4,IF(D120>0.025,3,IF(D120>0,2,IF(D120<0.001,1,0))))) -> 1 | E136: /5 | O136: 6
A138: Appréciation globale de l'analyse pour la partie Effet sur la santé financière de l'entreprise | G138: =(O138-1) -> 0 | H138: / 5 | O138: 1
A140: Commentaires de l'analyste
A146: Pointage d’Effets du projet: | B146: =D126+D128+D130+D132+D134+D136+G138 -> 6 | C146: /35 | D146: =B146/35 -> 0.1714285714
A149: Recommandations
A151: Commentaires de l'analyste
A157: Pointage Évaluation du projet | B157: =B61+B99+B146 -> 6 | C157: /85 | D157: =B157/85 -> 0.07058823529 | F157: Liens du projet avec les objectifs de l'entente spécifique régionale
A159: Pointage Comité d'analyse | C159: /15 | D159: =B159/15 -> 0 | F159: =IF(VLOOKUP(DEMANDE!J57,LISTES!$A$28:$B$35,2)=0,"",VLOOKUP(DEMANDE!J57,LISTES!$A$28:$B$35,2)) -> 
A161: Pointage total | B161: =B157+B159 -> 6 | C161: /100 | D161: =B161/100 -> 0.06 | F161: =IF(VLOOKUP(DEMANDE!J59,LISTES!$A$28:$B$35,2)=0,"",VLOOKUP(DEMANDE!J59,LISTES!$A$28:$B$35,2)) -> 
A163: Recommandation | F163: =IF(VLOOKUP(DEMANDE!J61,LISTES!$A$28:$B$35,2)=0,"",VLOOKUP(DEMANDE!J61,LISTES!$A$28:$B$35,2)) ->  | O163: 1
A165: Commentaires ou conditions particulières
A171: Analyste : | B171: =IF(G7="","",G7) -> 
A174: Signature
A178: Comité d'analyse
A181: Signatures
A186: À l'usage du MAPAQ
A187: Demande 1 | B187: Demandeur : | C187: =DEMANDE!B5 -> 0
A188: Titre du projet: | B188: =DEMANDE!B23 -> 0
A189: Mesure :
A190: Localisation : | B190: =DEMANDE!B21 -> 0
A191: $ demandée: | B191: $ recommandée: | C191: $ total du projet :
A192: =DEMANDE!F41 -> 0 | B192: =ANALYSE!I41 -> 0 | C192: =DEMANDE!E39 -> 0
A193: Description du projet :
A194: .
A195: Analyse | B195: =ANALYSE!G7 -> 0
A196: .
A197: Recommandation (s) du comité :
A198: $

Sheet Formulaire_réclamation
A1: Formulaire de réclamation pour le FIDSA
A2: Compléter uniquement les sections en jaune
A4: Nom de l'entreprise | E4: Numéro de projet :
A5: Répondant | E5: Répondant MAPAQ :
A6: Courriel
A7: Adresse | E7: Réclamation | F7: 1 | G7: =SUMIF(I33:I68,1,S33:S68)+(SUMIF(I33:I68,1,S33:S68)*0.15*0.5) -> 0
A8: Ville | E8: Réclamation | F8: 2 | G8: =SUMIF(I33:I68,2,S33:S68)+(SUMIF(I33:I68,2,S33:S68)*0.15*0.5) -> 0
A9: Téléphone | E9: Réclamation | F9: 3 | G9: =SUMIF(I33:I68,3,S33:S68)+(SUMIF(I33:I68,3,S33:S68)*0.15*0.5) -> 0
G10: =G7+G8+G9 -> 0
A12: Coût prévu et aide financière estimée | E12: Coût et aide du projet réalisé
A13: No associé à l'investissement initial | B13: Description des dépenses figurant dans la lettre d'offre | C13: Coût d'acquisition prévue | D13: Aide financière demandée | E13: Description des dépenses réalisés dans le projet | F13: Coût d'acquisition réelle | G13: Aide financière demandée | L13: Réclamation 1 | N13: Réclamation 2 | P13: Réclamation 3
A14: 1 | F14: =SUMIF($A$33:$A$68,A14,$G$33:$G$68) -> 0 | G14: =SUMIF($A$33:$A$68,A14,$S$33:$S$68) -> 0 | L14: =SUMIFS($G$33:$G$68,$A$33:$A$68,$A14,$I$33:$I$68,1) -> 0 | M14: =L14*(IF(DEMANDE!J28=3,60%,(IF(DEMANDE!J28=4,30%,50%)))) -> 0 | N14: =SUMIFS($G$33:$G$68,$A$33:$A$68,$A14,$I$33:$I$68,2) -> 0 | O14: =N14*(IF(DEMANDE!L28=3,60%,(IF(DEMANDE!L28=4,30%,50%)))) -> 0 | P14: =SUMIFS($G$33:$G$68,$A$33:$A$68,$A14,$I$33:$I$68,3) -> 0 | Q14: =P14*(IF(DEMANDE!N28=3,60%,(IF(DEMANDE!N28=4,30%,50%)))) -> 0
A15: 2 | F15: =SUMIF($A$33:$A$68,A15,$G$33:$G$68) -> 0 | G15: =SUMIF($A$33:$A$68,A15,$S$33:$S$68) -> 0 | L15: 0 | M15: =L15*(IF(DEMANDE!J29=3,60%,(IF(DEMANDE!J29=4,30%,50%)))) -> 0 | N15: 0 | O15: =N15*(IF(DEMANDE!L29=3,60%,(IF(DEMANDE!L29=4,30%,50%)))) -> 0 | P15: 0 | Q15: =P15*(IF(DEMANDE!N29=3,60%,(IF(DEMANDE!N29=4,30%,50%)))) -> 0
A16: 3 | F16: 0 | G16: 0 | L16: 0 | M16: =L16*(IF(DEMANDE!J30=3,60%,(IF(DEMANDE!J30=4,30%,50%)))) -> 0 | N16: 0 | O16: =N16*(IF(DEMANDE!L30=3,60%,(IF(DEMANDE!L30=4,30%,50%)))) -> 0 | P16: 0 | Q16: =P16*(IF(DEMANDE!N30=3,60%,(IF(DEMANDE!N30=4,30%,50%)))) -> 0
A17: 4 | F17: 0 | G17: 0 | L17: 0 | M17: =L17*(IF(DEMANDE!J31=3,60%,(IF(DEMANDE!J31=4,30%,50%)))) -> 0 | N17: 0 | O17: =N17*(IF(DEMANDE!L31=3,60%,(IF(DEMANDE!L31=4,30%,50%)))) -> 0 | P17: 0 | Q17: =P17*(IF(DEMANDE!N31=3,60%,(IF(DEMANDE!N31=4,30%,50%)))) -> 0
A18: 5 | F18: 0 | G18: 0 | L18: 0 | M18: =L18*(IF(DEMANDE!J32=3,60%,(IF(DEMANDE!J32=4,30%,50%)))) -> 0 | N18: 0 | O18: =N18*(IF(DEMANDE!L32=3,60%,(IF(DEMANDE!L32=4,30%,50%)))) -> 0 | P18: 0 | Q18: =P18*(IF(DEMANDE!N32=3,60%,(IF(DEMANDE!N32=4,30%,50%)))) -> 0
A19: 6 | F19: 0 | G19: 0 | L19: 0 | M19: =L19*(IF(DEMANDE!J33=3,60%,(IF(DEMANDE!J33=4,30%,50%)))) -> 0 | N19: 0 | O19: =N19*(IF(DEMANDE!L33=3,60%,(IF(DEMANDE!L33=4,30%,50%)))) -> 0 | P19: 0 | Q19: =P19*(IF(DEMANDE!N33=3,60%,(IF(DEMANDE!N33=4,30%,50%)))) -> 0
A20: 7 | F20: 0 | G20: 0 | L20: 0 | M20: =L20*(IF(DEMANDE!J34=3,60%,(IF(DEMANDE!J34=4,30%,50%)))) -> 0 | N20: 0 | O20: =N20*(IF(DEMANDE!L34=3,60%,(IF(DEMANDE!L34=4,30%,50%)))) -> 0 | P20: 0 | Q20: =P20*(IF(DEMANDE!N34=3,60%,(IF(DEMANDE!N34=4,30%,50%)))) -> 0
A21: 8 | F21: 0 | G21: 0 | L21: 0 | M21: =L21*(IF(DEMANDE!J35=3,60%,(IF(DEMANDE!J35=4,30%,50%)))) -> 0 | N21: 0 | O21: =N21*(IF(DEMANDE!L35=3,60%,(IF(DEMANDE!L35=4,30%,50%)))) -> 0 | P21: 0 | Q21: =P21*(IF(DEMANDE!N35=3,60%,(IF(DEMANDE!N35=4,30%,50%)))) -> 0
A22: 9 | F22: 0 | G22: 0 | L22: 0 | M22: =L22*(IF(DEMANDE!J36=3,60%,(IF(DEMANDE!J36=4,30%,50%)))) -> 0 | N22: 0 | O22: =N22*(IF(DEMANDE!L36=3,60%,(IF(DEMANDE!L36=4,30%,50%)))) -> 0 | P22: 0 | Q22: =P22*(IF(DEMANDE!N36=3,60%,(IF(DEMANDE!N36=4,30%,50%)))) -> 0
A23: 10 | F23: 0 | G23: 0 | L23: 0 | M23: =L23*(IF(DEMANDE!J37=3,60%,(IF(DEMANDE!J37=4,30%,50%)))) -> 0 | N23: 0 | O23: =N23*(IF(DEMANDE!L37=3,60%,(IF(DEMANDE!L37=4,30%,50%)))) -> 0 | P23: 0 | Q23: =P23*(IF(DEMANDE!N37=3,60%,(IF(DEMANDE!N37=4,30%,50%)))) -> 0
A24: 11 | F24: 0 | G24: 0 | L24: 0 | M24: =L24*(IF(DEMANDE!J38=3,60%,(IF(DEMANDE!J38=4,30%,50%)))) -> 0 | N24: 0 | O24: =N24*(IF(DEMANDE!L38=3,60%,(IF(DEMANDE!L38=4,30%,50%)))) -> 0 | P24: 0 | Q24: =P24*(IF(DEMANDE!N38=3,60%,(IF(DEMANDE!N38=4,30%,50%)))) -> 0
B25: Coût du projet et aide financière | C25: =SUM(C14:C24) -> 0 | D25: =MIN(SUM(D14:D24),50000) -> 0 | E25: Coût du projet et aide financière | F25: =SUM(F14:F24) -> 0 | G25: =MIN(50000,SUM(G14:G24)) -> 0 | L25: =SUM(L14:L24) -> 0 | M25: 0 | N25: 0 | O25: 0 | P25: 0 | Q25: 0
B26: Frais de gestion (15 %) | C26: =D25*0.15 -> 0 | D26: =MAX(MIN((50000-D25),(C26*0.5)),0) -> 0 | E26: Frais de gestion (15 %) | F26: =0.15*SUM(G14:G24) -> 0 | G26: =MIN((F26*50%),(50000-G25)) -> 0
C27: =C25+C26 -> 0 | D27: =MIN(50000,D25+D26) -> 0 | F27: =F25+F26 -> 0 | G27: =MIN(50000,G25+G26) -> 0
D28: Solde ou dépassement (en négatif) de l'engagement initial : | G28: =D27-G27 -> 0
E29: Dépassement de l'engagement initial (en %) : | G29: =IFERROR(IF(G25>D25,-(G28/D25),0),"") -> 0
A31: Liste des pièces justificatives et liens avec les investissements dans le tableau du haut | G31: À l'usage du MAPAQ
A32: No associé à l'investissement initial | B32: Type de dépenses | C32: Date | D32: No de facture | E32: Fournisseur | F32: Montants avant taxes | G32: Montants admissibles avant taxes | H32: % Aide | I32: Séquence de réclamations | J32: Date de réclamation | S32: Aide
S33: =G33*H33 -> 0
S34: 0
S35: 0
S36: 0
S37: 0
S38: 0
S39: 0
S40: 0
S41: 0
S42: 0
S43: =G43*H43 -> 0
S44: 0
S45: 0
S46: 0
S47: 0
S48: 0
S49: 0
S50: 0
S51: 0
S52: 0
S53: 0
S54: 0
S55: 0
S56: 0
S57: 0
S58: 0
S59: 0
S60: 0
S61: 0
S62: 0
S63: 0
S64: 0
S65: 0
S66: 0
S67: 0
S68: 0
A70: - J’atteste que les montants inscrits correspondent à la somme, avant taxes, réellement engagée et payée aux fins du Projet accepté dans le cadre du FIDSA.
A71: - Je joins au formulaire une copie des factures ainsi que l'ensemble des pièces justificatives exigées et j’en certifie l’authenticité.
A72: - J’ai informé le ministère de l'Agriculture, des Pêcheries et de l'Alimention de toute somme d’argent reçue ou à recevoir d’un autre ministère ou organisme
A73: gouvernemental, liée au présent projet pour lequel je reçois une aide financière.
A75: Bilan de mon projet: Mon projet a permis de réduire le stress financier et la charge de travail liés à mon entreprise | K75: 1
B77: Prénom et nom en lettres moulées : | C77: =IF(DEMANDE!B7="","",DEMANDE!B7) -> 
B80: Signature du bénéficiaire ou de son représentant : | G80: Date :
A83: Retourner le fichier Excel, une copie signée et une copie des factures à l'adresse suivante: | E83: gaspesie-iles.aidefinanciere@mapaq.gouv.qc.ca

Sheet Exemple
A1: Formulaire de réclamation pour le FIDSA
A2: Compléter uniquement les sections en jaune
A4: Nom de l'entreprise | B4: Ferme AA | E4: Numéro de projet :
A5: Répondant | B5: Diane B. | E5: Répondant MAPAQ :
A6: Adresse | B6: rang 2
A7: Ville | B7: Caplan | E7: Réclamation | F7: 1 | G7: =SUMIF(J33:J68,1,I33:I68)+(SUMIF(J33:J68,1,I33:I68)*0.15*0.5) -> 29238.925
A8: Téléphone | B8: 123-456-7899 | E8: Réclamation | F8: 2 | G8: =SUMIF(J33:J68,2,I33:I68)+(SUMIF(J33:J68,2,I33:I68)*0.15*0.5) -> 0
E9: Réclamation | F9: 3 | G9: =SUMIF(J33:J68,3,I33:I68)+(SUMIF(J33:J68,3,I33:I68)*0.15*0.5) -> 0
G10: =G7+G8+G9 -> 29238.925
A12: Coût prévu et aide financière estimée | E12: Coût et aide du projet réalisé
A13: No associé à l'investissement initial | B13: Investissements prévus dans la lettre d'offre | C13: Coût d'acquisition prévue | D13: Aide financière demandée | E13: Investissements réalisés dans le projet | F13: Coût d'acquisition réelle | G13: Aide financière demandée | M13: Réclamation 1 | O13: Réclamation 2 | Q13: Réclamation 3
A14: 1 | B14: Agrandissement 35x60 | C14: 70000 | D14: 35000 | E14: Agrandissement 30 x 50 ' | F14: =SUMIF($A$33:$A$68,A14,$G$33:$G$68) -> 44000 | G14: =SUMIF($A$33:$A$68,A14,$I$33:$I$68) -> 22000 | M14: =SUMIFS($G$33:$G$68,$A$33:$A$68,$A14,$J$33:$J$68,1) -> 44000 | N14: =M14*(IF(DEMANDE!J28=3,60%,(IF(DEMANDE!J28=4,30%,50%)))) -> 22000 | O14: =SUMIFS($G$33:$G$68,$A$33:$A$68,$A14,$J$33:$J$68,2) -> 0 | P14: =O14*(IF(DEMANDE!L28=3,60%,(IF(DEMANDE!L28=4,30%,50%)))) -> 0 | Q14: =SUMIFS($G$33:$G$68,$A$33:$A$68,$A14,$J$33:$J$68,3) -> 0 | R14: =Q14*(IF(DEMANDE!N28=3,60%,(IF(DEMANDE!N28=4,30%,50%)))) -> 0
A15: 2 | B15: 50 agnelles | C15: 20000 | D15: 6000 | E15: Achat de 35 agnelles | F15: =SUMIF($A$33:$A$68,A15,$G$33:$G$68) -> 13500 | G15: =SUMIF($A$33:$A$68,A15,$I$33:$I$68) -> 4050 | M15: 13500 | N15: =M15*(IF(DEMANDE!J29=3,60%,(IF(DEMANDE!J29=4,30%,50%)))) -> 6750 | O15: 0 | P15: =O15*(IF(DEMANDE!L29=3,60%,(IF(DEMANDE!L29=4,30%,50%)))) -> 0 | Q15: 0 | R15: =Q15*(IF(DEMANDE!N29=3,60%,(IF(DEMANDE!N29=4,30%,50%)))) -> 0
A16: 3 | B16: Cage et balance | C16: 3000 | D16: 1500 | E16: Cage et balance | F16: 2298 | G16: 1149 | M16: 2298 | N16: =M16*(IF(DEMANDE!J30=3,60%,(IF(DEMANDE!J30=4,30%,50%)))) -> 1149 | O16: 0 | P16: =O16*(IF(DEMANDE!L30=3,60%,(IF(DEMANDE!L30=4,30%,50%)))) -> 0 | Q16: 0 | R16: =Q16*(IF(DEMANDE!N30=3,60%,(IF(DEMANDE!N30=4,30%,50%)))) -> 0
A17: 4 | F17: 0 | G17: 0 | M17: 0 | N17: =M17*(IF(DEMANDE!J31=3,60%,(IF(DEMANDE!J31=4,30%,50%)))) -> 0 | O17: 0 | P17: =O17*(IF(DEMANDE!L31=3,60%,(IF(DEMANDE!L31=4,30%,50%)))) -> 0 | Q17: 0 | R17: =Q17*(IF(DEMANDE!N31=3,60%,(IF(DEMANDE!N31=4,30%,50%)))) -> 0
A18: 5 | F18: 0 | G18: 0 | M18: 0 | N18: =M18*(IF(DEMANDE!J32=3,60%,(IF(DEMANDE!J32=4,30%,50%)))) -> 0 | O18: 0 | P18: =O18*(IF(DEMANDE!L32=3,60%,(IF(DEMANDE!L32=4,30%,50%)))) -> 0 | Q18: 0 | R18: =Q18*(IF(DEMANDE!N32=3,60%,(IF(DEMANDE!N32=4,30%,50%)))) -> 0
A19: 6 | F19: 0 | G19: 0 | M19: 0 | N19: =M19*(IF(DEMANDE!J33=3,60%,(IF(DEMANDE!J33=4,30%,50%)))) -> 0 | O19: 0 | P19: =O19*(IF(DEMANDE!L33=3,60%,(IF(DEMANDE!L33=4,30%,50%)))) -> 0 | Q19: 0 | R19: =Q19*(IF(DEMANDE!N33=3,60%,(IF(DEMANDE!N33=4,30%,50%)))) -> 0
A20: 7 | F20: 0 | G20: 0 | M20: 0 | N20: =M20*(IF(DEMANDE!J34=3,60%,(IF(DEMANDE!J34=4,30%,50%)))) -> 0 | O20: 0 | P20: =O20*(IF(DEMANDE!L34=3,60%,(IF(DEMANDE!L34=4,30%,50%)))) -> 0 | Q20: 0 | R20: =Q20*(IF(DEMANDE!N34=3,60%,(IF(DEMANDE!N34=4,30%,50%)))) -> 0
A21: 8 | F21: 0 | G21: 0 | M21: 0 | N21: =M21*(IF(DEMANDE!J35=3,60%,(IF(DEMANDE!J35=4,30%,50%)))) -> 0 | O21: 0 | P21: =O21*(IF(DEMANDE!L35=3,60%,(IF(DEMANDE!L35=4,30%,50%)))) -> 0 | Q21: 0 | R21: =Q21*(IF(DEMANDE!N35=3,60%,(IF(DEMANDE!N35=4,30%,50%)))) -> 0
A22: 9 | F22: 0 | G22: 0 | M22: 0 | N22: =M22*(IF(DEMANDE!J36=3,60%,(IF(DEMANDE!J36=4,30%,50%)))) -> 0 | O22: 0 | P22: =O22*(IF(DEMANDE!L36=3,60%,(IF(DEMANDE!L36=4,30%,50%)))) -> 0 | Q22: 0 | R22: =Q22*(IF(DEMANDE!N36=3,60%,(IF(DEMANDE!N36=4,30%,50%)))) -> 0
A23: 10 | F23: 0 | G23: 0 | M23: 0 | N23: =M23*(IF(DEMANDE!J37=3,60%,(IF(DEMANDE!J37=4,30%,50%)))) -> 0 | O23: 0 | P23: =O23*(IF(DEMANDE!L37=3,60%,(IF(DEMANDE!L37=4,30%,50%)))) -> 0 | Q23: 0 | R23: =Q23*(IF(DEMANDE!N37=3,60%,(IF(DEMANDE!N37=4,30%,50%)))) -> 0
A24: 11 | F24: 0 | G24: 0 | M24: 0 | N24: =M24*(IF(DEMANDE!J38=3,60%,(IF(DEMANDE!J38=4,30%,50%)))) -> 0 | O24: 0 | P24: =O24*(IF(DEMANDE!L38=3,60%,(IF(DEMANDE!L38=4,30%,50%)))) -> 0 | Q24: 0 | R24: =Q24*(IF(DEMANDE!N38=3,60%,(IF(DEMANDE!N38=4,30%,50%)))) -> 0
B25: Coût du projet et aide financière | C25: =SUM(C14:C24) -> 93000 | D25: =SUM(D14:D24) -> 42500 | E25: Coût du projet et aide financière | F25: =SUM(F14:F24) -> 59798 | G25: =SUM(G14:G24) -> 27199 | M25: =SUM(M14:M24) -> 59798 | N25: 29899 | O25: 0 | P25: 0 | Q25: 0 | R25: 0
B26: Frais de gestion (15 %) | C26: =D25*0.15 -> 6375 | D26: =MIN((50000-D25),(C26*0.5)) -> 3187.5 | E26: Frais de gestion (15 %) | F26: =0.15*SUM(G14:G24) -> 4079.85 | G26: =F26*50% -> 2039.925
C27: =C25+C26 -> 99375 | D27: =MIN(50000,D25+D26) -> 45687.5 | F27: =F25+F26 -> 63877.85 | G27: =G25+G26 -> 29238.925
D28: Solde ou dépassement (en négatif) de l'engagement initial : | G28: =D27-G27 -> 16448.575
E29: Dépassement de l'engagement initial (en %) : | G29: =IFERROR(IF(G25>D25,-(G28/D25),0),"") -> 0
A31: Liste des pièces justificatives et liens avec les investissements dans le tableau du haut | G31: À l'usage du MAPAQ
A32: No associé à l'investissement initial | B32: Type de dépenses | C32: Date | D32: No de facture | E32: Fournisseur | F32: Montants avant taxes | G32: Montants admissibles avant taxes | H32: % Aide | J32: Séquence de réclamations | K32: Date de réclamation
A33: 1 | B33: Fondation | C33: 2023-07-01 | D33: 1 | E33: Beton Régional | F33: 12500 | G33: 12500 | H33: 0.5 | I33: =G33*H33 -> 6250 | J33: 1 | K33: 2023-09-15
A34: 1 | B34: Murs | C34: 2023-08-04 | D34: 2 | E34: Leon Girard | F34: 8000 | G34: 8000 | H34: 0.5 | I34: =G34*H34 -> 4000 | J34: 1 | K34: 2023-09-15
A35: 1 | B35: Fermes de toît | C35: 2023-07-08 | D35: 3 | E35: Leon Girard | F35: 12000 | G35: 12000 | H35: 0.5 | I35: 6000 | J35: 1 | K35: 2023-09-15
A36: 1 | B36: Tôle | C36: 2023-07-14 | D36: 4 | E36: Bruno Laplante | F36: 4000 | G36: 4000 | H36: 0.5 | I36: 2000 | J36: 1 | K36: 2023-09-15
A37: 1 | B37: Rêvetement ext. et int. | C37: 2023-07-20 | D37: 5 | E37: Home Software | F37: 7500 | G37: 7500 | H37: 0.5 | I37: 3750 | J37: 1 | K37: 2023-09-15
A38: 2 | B38: 20 agnelles | C38: 2023-08-15 | D38: 6 | E38: Bergerie La Grande Butte | F38: 8000 | G38: 8000 | H38: 0.3 | I38: 2400 | J38: 1 | K38: 2023-09-15
A39: 2 | B39: 15 agnelles | C39: 2023-09-01 | D39: 7 | E39: Bergerie Opti Rêve | F39: 5500 | G39: 5500 | H39: 0.3 | I39: 1650 | J39: 1 | K39: 2023-09-15
A40: 3 | B40: Cage et balance | C40: 2023-07-29 | D40: 8 | E40: Jack Elevage | F40: 2298 | G40: 2298 | H40: 0.5 | I40: 1149 | J40: 1 | K40: 2023-09-15
I43: 0
I44: 0
I45: 0
I46: 0
I47: 0
I48: 0
I49: 0
I50: 0
I51: 0
I52: 0
I53: 0
I54: 0
I55: 0
I56: 0
I57: 0
I58: 0
I59: 0
I60: 0
I61: 0
I62: 0
I63: 0
I64: 0
I65: 0
I66: 0
I67: 0
I68: 0
A70: - J’atteste que les montants inscrits correspondent à la somme, avant taxes, réellement engagée et payée aux fins du Projet accepté dans le cadre du FIDSA.
A71: - Je joins au formulaire une copie de chaque facture qui y est présentée ainsi que l'ensemble des pièces justificatives exigées et j’en certifie l’authenticité.
A72: - J’ai informé le ministère de l'Agriculture, des Pêcheries et de l'Alimention de toute somme d’argent reçue ou à recevoir d’un autre ministère ou organisme
A73: gouvernemental, liée au présent projet pour lequel je reçois une aide financière.
A75: Bilan de mon projet: Mon projet a permis de réduire le stress financier et la charge de travail liés à mon entreprise | L75: 1
B77: Prénom et nom en lettres moulées : | C77: =IF(DEMANDE!B7="","",DEMANDE!B7) -> 
B80: Signature du bénéficiaire ou de son représentant : | G80: Date :

Sheet LISTES (hidden)
B3: Démarrage (entreprise qui n'a pas encore de ventes)
B4: Démarrage (entreprise en production depuis moins de 5 ans)
B5: Transfert (au moins un nouveau propriétaire depuis moins de 5 ans)
B6: Expansion (Production en croissance)
B7: Consolidation (Production stable)
B10: Au moins un propriétaire de moins de 45 ans, établi depuis moins de 5 ans
B11: Au moins un propriétaire de moins de 45 ans
B12: Tous les propriétaires ont plus de 45 ans
A14: 1
A15: 2 | B15: 1.A - Dév. entreprises : Aide - individuel | G15: 50000 | H15: =SUMIF(ANALYSE!$O$28:$O$38,A15,ANALYSE!$I$28:$I$38) -> 0 | I15: =IF(H15>G15,"Oui","Non") -> Non
A16: 3 | B16: 1.A - Dév. entreprises : Aide - CUMA | G16: 50000 | H16: =SUMIF(ANALYSE!$O$28:$O$38,A16,ANALYSE!$I$28:$I$38) -> 0 | I16: =IF(H16>G16,"Oui","Non") -> Non
A17: 4 | B17: 1.B - Dév. entreprises : Prod. animales durables - Achat d'animaux | G17: 25000 | H17: =SUMIF(ANALYSE!$O$28:$O$38,A17,ANALYSE!$I$28:$I$38) -> 0 | I17: Non
A18: 5 | B18: 1.B - Dév. entreprises : Prod. animales durables - Amé. durables | G18: 25000 | H18: =SUMIF(ANALYSE!$O$28:$O$38,A18,ANALYSE!$I$28:$I$38) -> 0 | I18: Non
A19: 6 | B19: 1.B - Dév. entreprises : Prod. animales durables - Dév. apiculture | G19: 25000 | H19: =SUMIF(ANALYSE!$O$28:$O$38,A19,ANALYSE!$I$28:$I$38) -> 0 | I19: Non
A20: 7 | B20: 1.C - Dév. entreprises : Amé. sols et C.C. - Drainage et nivellement | G20: 50000 | H20: =SUMIF(ANALYSE!$O$28:$O$38,A20,ANALYSE!$I$28:$I$38) -> 0 | I20: Non
A21: 8 | B21: 1.C - Dév. Entreprises : Amé. sols et C.C. - Cultures de couverture | G21: 5000 | H21: =SUMIF(ANALYSE!$O$28:$O$38,A21,ANALYSE!$I$28:$I$38) -> 0 | I21: Non
A22: 9 | B22: 1.D - Dév. Entreprises : Relève et établissement | G22: 50000 | H22: =SUMIF(ANALYSE!$O$28:$O$38,A22,ANALYSE!$I$28:$I$38) -> 0 | I22: Non
A23: 10 | B23: 1.E - Dév. Entreprises : Remise en culture d'une friche agricole | G23: 25000 | H23: =SUMIF(ANALYSE!$O$28:$O$38,A23,ANALYSE!$I$28:$I$38) -> 0 | I23: Non
A24: 11 | B24: 4 - Dév. activités de transformation | G24: 50000 | H24: =SUMIF(ANALYSE!$O$28:$O$38,A24,ANALYSE!$I$28:$I$38) -> 0 | I24: Non
H25: =SUM(H15:H24) -> 0
A28: 1
A29: 2 | B29: 1.1 Réduire le déficit de fertilité des sols
A30: 3 | B30: 1.2 Soutenir les producteurs dans l’adoption de bonnes pratiques visant l’amélioration de la santé des sols et leur rendement
A31: 4 | B31: 1.3 Soutenir le secteur et les entreprises dans les défis reliés à l’adaptation aux changements climatiques
A32: 5 | B32: 3.3 Appuyer les entreprises dans leurs projets d’optimisation et de modernisation des infrastructures et équipements
A33: 6 | B33: 3.6 Favoriser l’établissement de la relève et le transfert des entreprises existantes
A34: 7 | B34: 4.2 Soutenir les initiatives visant l’amélioration de la performance des cheptels
A35: 8 | B35: 5.3 Appuyer la transférabilité des fermes pour sécuriser le territoire agricole cultivé de la région
B39: Aucune formation reconnue
B40: Niv. 3 - DEP en agriculture
B41: Niv. 3 - AEC en agriculture
B42: Niv. 3 - DEC non relié à l'agriculture
B43: Niv. 2 - DEC connexe à l'agriculture
B44: Niv. 2 - DEP & AEC en agriculture
B45: Niv. 1 -DEC en agriculture
B46: Niv. 1 - Baccalauréat en agriculture
B48: Non demandé
B49: En analyse
B50: Confirmé
B53: Avignon
B54: Bonaventure
B55: Côte-de-Gaspé
B56: Haute-Gaspésie
B57: Rocher-Percé
B60: Apiculture
B61: Bovins de boucherie
B62: Bovins laitiers
B63: Caprins de boucherie
B64: Caprins laitiers
B65: Ovins
B66: Autres prod. animales
B67: ---------------
B68: Acériculture
B69: Grandes cultures
B70: Horticulture ornementale
B71: Maraîchage diversifié
B72: Pommes de terre
B73: Production fourragère
B74: Production fruitière
B75: Produits forestiers non ligneux
B76: Autres prod. végétales
B77: ---------------
B78: Transformateur (+50 % produits régionaux)
A80: 1
A81: 2 | B81: - de 30 % | C81: 1
A82: 3 | B82: 30 % & + | C82: 2
A83: 4 | B83: 50 % & + | C83: 3
A84: 5 | B84: 70 % & + | C84: 4
A85: 6 | B85: 90 % & + | C85: 5
B89: Oui
B90: Non
B93: Faible
B94: Moyen
B95: Bon
B96: Très bon
B97: Excellent
B100: Aucune
B101: Peu
B102: Quelques-unes
B103: Plusieurs
B104: Non problématique
B107: < 0 %
B108: 0 - 5 %
B109: 5-10 %
B110: 10 - 20 %
B111: > 20 %
B115: < 0 %
B116: 0 - 2,5 %
B117: 2,5 - 5 %
B118: 5 - 10 %
B119: > 10 %
B123: Projet accepté tel que soumis
B124: Projet accepté avec conditions
B125: Projet accepté avec modifications
B126: Projet refusé
B127: Projet inadmissible
B129: Beaucoup
B130: Moyennement
B131: Peu
B132: Pas du tout
B135: Terrain ou immeuble qui est la propriété de l'entreprise, d'un de ses propriétaires ou du demandeur.
B136: Terrain ou immeuble avec bail enregistré ou publié (minimum de 5 ans). Nécessaire quand l'investissement admissible est > 10 000 $.
B137: Terrain ou immeuble avec bail (minimum de 5 ans ou mention renouvelable). Nécessaire quand l' investissement admissible est < 10 000$.
B138: Terrain ou immeuble avec bail à des fins commerciales, délivré par le ministère des Ressources naturelles et des Forêts ou par une MRC délégataire.
B141: Toutes les soumissions nécessaires sont présentes
B142: Aucune soumission n'est nécessaire
B143: Certaines soumissions sont manquantes
B144: Toutes les soumissions sont manquantes

Sheet INFOS (hidden)
C3: =DEMANDE!B5 -> 0 | D3: =DEMANDE!B7 -> 0 | E3: =DEMANDE!B9 -> 0 | F3: =DEMANDE!B11 -> 0 | G3: =DEMANDE!F15 -> 0
